bitfinex/quotes_BTCUSD_20230111
["timestamp","ask_amount","ask_price","bid_price","bid_amount"]
[1673470819062,0.00117749,17555.0,17554.0,2.92761238]
[1673470819318,0.00117749,17555.0,17554.0,2.75771553]
[1673470819795,0.00117749,17555.0,17554.0,3.28531538]
[1673470820037,0.00117749,17555.0,17554.0,3.58531538]
[1673470820541,0.00117749,17555.0,17554.0,3.46210233]
[1673470820796,0.00079603,17555.0,17554.0,3.95709336]
[1673470821052,0.00079603,17555.0,17554.0,4.12686409]
[1673470821311,0.00079603,17555.0,17554.0,4.87712773]
[1673470821566,0.00079603,17555.0,17554.0,4.49558058]
[1673470821567,0.00035881,17555.0,17554.0,4.49558058]
[1673470822336,0.00035881,17555.0,17554.0,5.39283177]
[1673470822832,0.00035881,17555.0,17554.0,5.00512174]
[1673470823087,0.00035881,17555.0,17554.0,3.9995926]
[1673470823339,0.2380367,17555.0,17554.0,3.33136148]
[1673470823597,0.00035881,17555.0,17554.0,3.99875058]
[1673470824625,0.00035881,17555.0,17554.0,4.29875058]
[1673470824887,0.00035881,17555.0,17554.0,4.46850604]
[1673470825140,0.00035881,17555.0,17554.0,3.63155918]
[1673470825443,0.00035881,17555.0,17554.0,3.80127272]
[1673470826224,0.00035881,17555.0,17554.0,4.4710512]
[1673470826470,0.00035881,17555.0,17554.0,3.80127272]
[1673470826774,0.00035881,17555.0,17554.0,4.57155942]
[1673470827023,0.00035881,17555.0,17554.0,4.14720231]
[1673470827555,0.00035881,17555.0,17554.0,3.63153999]
[1673470827808,0.00035881,17555.0,17554.0,3.80127272]
[1673470828063,0.00035881,17555.0,17554.0,4.39674003]
[1673470828314,0.00035881,17555.0,17554.0,4.22699435]
[1673470828814,0.00035881,17555.0,17554.0,3.95667296]
[1673470829066,0.00035881,17555.0,17554.0,4.12641864]
[1673470830370,0.00035881,17555.0,17554.0,3.78691684]
[1673470830873,0.00035881,17555.0,17554.0,4.12632502]
[1673470831128,0.00035881,17555.0,17554.0,4.69154216]
[1673470831382,0.00035881,17555.0,17554.0,3.95650791]
[1673470831909,0.00035881,17555.0,17554.0,4.66879705]
[1673470832166,0.00035881,17555.0,17554.0,4.12632502]
[1673470832434,0.00035881,17555.0,17554.0,3.78691684]
[1673470832688,0.00016314,17555.0,17554.0,3.78691684]
[1673470832946,0.00016314,17555.0,17554.0,4.12623048]
[1673470833451,0.00016314,17555.0,17554.0,3.78691684]
[1673470833977,0.00016314,17555.0,17554.0,3.36255973]
[1673470834739,0.00016314,17555.0,17554.0,3.78665324]
[1673470835737,0.00016314,17555.0,17554.0,3.36255973]
[1673470836240,0.00016314,17555.0,17554.0,3.9565074]
[1673470836491,0.34005367,17558.0,17555.0,0.3]
[1673470836749,0.02154206,17559.0,17556.0,2.23615663]
[1673470837003,0.5319787,17559.0,17557.0,0.3]
[1673470837261,0.5319787,17559.0,17558.0,1.13908]
[1673470838326,0.02154206,17559.0,17558.0,2.0893042]
[1673470838563,0.02154206,17559.0,17558.0,2.0943042]
[1673470838564,0.02354206,17559.0,17558.0,2.0943042]
[1673470839073,0.02354206,17559.0,17558.0,2.3943042]
[1673470839320,0.02354206,17559.0,17558.0,2.48325863]
[1673470839579,0.02354206,17559.0,17558.0,3.51520075]
[1673470841143,0.02354206,17559.0,17558.0,2.84096163]
[1673470841400,0.02354206,17559.0,17558.0,3.47362511]
[1673470841643,0.02354206,17559.0,17558.0,3.47368511]
[1673470841889,0.02354206,17559.0,17558.0,2.84102163]
[1673470842388,0.02354206,17559.0,17558.0,3.47416486]
[1673470842901,0.02354206,17559.0,17558.0,3.95754328]
[1673470843403,0.02354206,17559.0,17558.0,3.7286228]
[1673470843673,0.02354206,17559.0,17558.0,3.9575506]
[1673470843949,0.02354206,17559.0,17558.0,3.32440737]
[1673470844481,0.02354206,17559.0,17558.0,4.01209907]
[1673470844745,0.01595887,17559.0,17558.0,3.43479853]
[1673470844997,0.01595887,17559.0,17558.0,3.49402158]
[1673470845298,0.01595887,17559.0,17558.0,3.56470956]
[1673470845549,0.01595887,17559.0,17558.0,3.3326323]
[1673470845809,0.02582247,17561.0,17559.0,0.00850405]
[1673470846096,0.02582247,17561.0,17560.0,4.08684353]
[1673470846334,0.02582247,17561.0,17560.0,5.05621429]
[1673470846625,0.02582247,17561.0,17560.0,4.75983974]
[1673470846850,0.02582247,17561.0,17560.0,5.19511689]
[1673470847102,0.02582247,17561.0,17560.0,5.02528417]
[1673470848117,0.02582247,17561.0,17560.0,3.80632042]
[1673470848373,0.02582247,17561.0,17560.0,3.57741704]
[1673470848629,0.02582247,17561.0,17560.0,2.70794104]
[1673470849139,0.02582247,17561.0,17560.0,2.70800104]
[1673470850179,0.02582247,17561.0,17560.0,3.00800104]
[1673470850461,0.02582247,17561.0,17560.0,3.47769235]
[1673470850724,0.02582247,17561.0,17560.0,3.30800104]
[1673470852010,0.02582247,17561.0,17560.0,3.00800104]
[1673470852307,0.02582247,17561.0,17560.0,3.30800104]
[1673470852605,0.48324427,17561.0,17560.0,1.708488]
[1673470852850,0.48324427,17561.0,17560.0,1.139012]
[1673470853370,0.02582247,17561.0,17560.0,1.139012]
[1673470854167,0.02582247,17561.0,17560.0,1.708428]
[1673470854435,0.02582247,17561.0,17560.0,2.008428]
[1673470854700,0.02582247,17561.0,17560.0,2.666131]
[1673470854943,0.02582247,17561.0,17560.0,1.738952]
[1673470855228,0.02582247,17561.0,17560.0,2.308428]
[1673470855982,0.02582247,17561.0,17560.0,2.666131]
[1673470856240,0.02582247,17561.0,17560.0,2.308428]
[1673470857100,0.02582247,17561.0,17560.0,2.9921779]
[1673470857357,0.02582247,17561.0,17560.0,3.3498809]
[1673470857911,0.02582247,17561.0,17560.0,2.9921779]
[1673470858162,0.02582247,17561.0,17560.0,2.6921779]
[1673470858429,0.02582247,17561.0,17560.0,2.3921779]
[1673470859464,0.02582247,17561.0,17560.0,1.8227019]
[1673470861753,0.02582247,17561.0,17560.0,2.1804049]
[1673470862256,0.02582247,17561.0,17560.0,1.8227019]
[1673470862510,0.02582247,17561.0,17560.0,2.3921779]
[1673470862752,0.02582247,17561.0,17560.0,2.7498809]
[1673470863034,0.02582247,17561.0,17560.0,1.8227019]
[1673470863521,0.02582247,17561.0,17560.0,2.3921779]
[1673470864260,0.02582247,17561.0,17560.0,2.7498809]
[1673470865015,0.02582247,17561.0,17560.0,2.1804049]
[1673470865529,0.02582247,17561.0,17560.0,2.95009621]
[1673470865784,0.02582247,17561.0,17560.0,3.51957221]
[1673470866816,0.02582247,17561.0,17560.0,2.56186921]
[1673470867070,0.02582247,17561.0,17560.0,2.3921779]
[1673470867324,0.02582247,17561.0,17560.0,2.56186921]
[1673470867575,0.02582247,17561.0,17560.0,2.91957221]
[1673470867835,0.02570726,17561.0,17560.0,3.01101164]
[1673470868087,0.01817242,17561.0,17560.0,3.39355253]
[1673470868354,0.01817242,17561.0,17560.0,3.35423825]
[1673470868607,0.01817242,17561.0,17560.0,3.85652115]
[1673470868866,0.01817242,17561.0,17560.0,3.43207233]
[1673470869116,0.01817242,17561.0,17560.0,3.38898713]
[1673470869371,0.01817242,17561.0,17560.0,3.9829348]
[1673470869372,0.00860702,17561.0,17560.0,3.9829348]
[1673470869622,0.00860702,17561.0,17560.0,4.91275885]
[1673470870388,0.0005,17564.0,17560.0,4.91275885]
[1673470870654,0.0005,17564.0,17563.0,0.59383009]
[1673470870913,0.0005,17564.0,17563.0,3.44973087]
[1673470871167,0.0005,17564.0,17563.0,4.04973087]
[1673470871669,0.0005,17564.0,17563.0,4.21939661]
[1673470872425,0.0005,17564.0,17563.0,4.04977194]
[1673470872637,0.0005,17564.0,17563.0,4.51641932]
[1673470872918,0.0005,17564.0,17563.0,4.49831217]
[1673470873182,0.0005,17564.0,17563.0,4.29573354]
[1673470873436,0.0005,17564.0,17563.0,4.04119386]
[1673470873686,0.0005,17564.0,17563.0,4.37091616]
[1673470873944,0.0005,17564.0,17563.0,4.56632925]
[1673470874198,0.0005,17564.0,17563.0,4.37097616]
[1673470874460,0.0005,17564.0,17563.0,3.66944932]
[1673470874717,0.0005,17564.0,17563.0,4.05926497]
[1673470874972,0.02541377,17565.0,17563.0,4.31380465]
[1673470875225,0.02541377,17565.0,17564.0,0.957703]
[1673470875499,0.02541377,17565.0,17564.0,3.26969061]
[1673470875778,0.02541377,17565.0,17564.0,2.96969061]
[1673470876307,0.02541377,17565.0,17564.0,2.665741]
[1673470876513,0.02541377,17565.0,17564.0,3.37788677]
[1673470877080,0.01541377,17565.0,17564.0,3.38888677]
[1673470877556,0.01541377,17565.0,17564.0,3.32648996]
[1673470878312,0.01541377,17565.0,17564.0,3.2725877]
[1673470878605,0.01541377,17565.0,17564.0,2.676741]
[1673470879113,0.01541377,17565.0,17564.0,3.27500097]
[1673470879361,0.01541377,17565.0,17564.0,2.676741]
[1673470879608,0.01541377,17565.0,17564.0,3.35031173]
[1673470880354,0.01541377,17565.0,17564.0,3.35037173]
[1673470881120,0.01541377,17565.0,17564.0,3.22943728]
[1673470881861,0.01541377,17565.0,17564.0,2.676801]
[1673470882110,0.01541377,17565.0,17564.0,3.22395369]
[1673470883385,0.01541377,17565.0,17564.0,2.86625069]
[1673470883646,0.01541377,17565.0,17564.0,3.22395369]
[1673470884408,0.01541377,17565.0,17564.0,2.86625069]
[1673470884912,0.01541377,17565.0,17564.0,3.22395369]
[1673470885429,0.01541377,17565.0,17564.0,3.22389369]
[1673470885942,0.01541377,17565.0,17564.0,2.86619069]
[1673470886454,0.01541377,17565.0,17564.0,3.22389369]
[1673470887197,0.01541377,17565.0,17564.0,2.86619069]
[1673470887454,0.25309166,17565.0,17564.0,1.149692]
[1673470887706,0.58701517,17565.0,17564.0,1.149692]
[1673470887965,0.01541377,17565.0,17564.0,1.149692]
[1673470888220,0.01541377,17565.0,17564.0,2.66830384]
[1673470889487,0.01541377,17565.0,17564.0,2.09895784]
[1673470889740,0.01541377,17565.0,17564.0,2.66830384]
[1673470890268,0.01541377,17565.0,17564.0,2.319038]
[1673470890523,0.01541377,17565.0,17564.0,1.46348356]
[1673470890795,0.01541377,17565.0,17564.0,2.60217556]
[1673470891035,0.01541377,17565.0,17564.0,3.80517033]
[1673470891807,0.01541377,17565.0,17564.0,3.17152156]
[1673470893099,0.01541377,17565.0,17564.0,3.73835645]
[1673470893407,0.01541377,17565.0,17564.0,3.17152156]
[1673470893598,0.01541377,17565.0,17564.0,3.99747466]
[1673470893849,0.01541377,17565.0,17564.0,3.74293498]
[1673470894102,0.01541377,17565.0,17564.0,3.58719398]
[1673470894862,0.0138724,17565.0,17564.0,3.74589082]
[1673470895103,0.0138724,17565.0,17564.0,3.57618226]
[1673470895348,0.0138724,17565.0,17564.0,3.74589082]
[1673470895859,0.0138724,17565.0,17564.0,3.57617874]
[1673470896102,0.0138724,17565.0,17564.0,3.91551663]
[1673470896353,0.0138724,17565.0,17564.0,3.57618515]
[1673470896602,0.0138724,17565.0,17564.0,4.63265537]
[1673470896844,0.0138724,17565.0,17564.0,4.29332389]
[1673470897338,0.0138724,17565.0,17564.0,3.91224474]
[1673470897554,0.00848734,17565.0,17564.0,3.91224474]
[1673470897845,0.00848734,17565.0,17564.0,4.93015433]
[1673470898098,0.00848734,17565.0,17564.0,4.93015381]
[1673470898625,0.00848734,17565.0,17564.0,4.50619241]
[1673470901622,0.00848734,17565.0,17564.0,4.93015038]
[1673470902135,0.00848734,17565.0,17564.0,4.1284105]
[1673470902395,0.00848734,17565.0,17564.0,4.2091101]
[1673470903624,0.00848734,17565.0,17564.0,4.5091101]
[1673470904422,0.00848734,17565.0,17564.0,4.80215533]
[1673470904669,0.00848734,17565.0,17564.0,5.05665674]
[1673470904918,0.00848734,17565.0,17564.0,4.80215533]
[1673470905430,0.00848734,17565.0,17564.0,4.18396418]
[1673470905684,0.00848734,17565.0,17564.0,4.48749269]
[1673470905938,0.00848734,17565.0,17564.0,4.82700541]
[1673470906449,0.00848734,17565.0,17564.0,4.23305774]
[1673470906694,0.00848734,17565.0,17564.0,4.23332835]
[1673470907946,0.00848734,17565.0,17564.0,3.76422948]
[1673470908199,0.00848734,17565.0,17564.0,3.89436054]
[1673470908457,0.00848734,17565.0,17564.0,3.5943696]
[1673470908960,0.00848734,17565.0,17564.0,2.6673206]
[1673470909209,0.00848734,17565.0,17564.0,2.25132876]
[1673470909462,0.24616523,17565.0,17564.0,1.95132876]
[1673470909717,0.00848734,17565.0,17563.0,1.62705144]
[1673470909971,0.00848734,17565.0,17563.0,1.37219234]
[1673470910469,0.56924752,17565.0,17563.0,1.62705144]
[1673470910734,0.56924752,17565.0,17563.0,1.94157034]
[1673470911003,0.56924752,17565.0,17563.0,2.19642944]
[1673470911253,0.56924752,17565.0,17563.0,2.23142944]
[1673470911779,0.56924752,17565.0,17564.0,0.3]
[1673470912006,0.56924752,17565.0,17564.0,0.869346]
[1673470912501,0.56924752,17565.0,17564.0,0.569346]
[1673470913763,0.56924752,17565.0,17564.0,1.138692]
[1673470915312,0.56924752,17565.0,17564.0,1.438692]
[1673470915577,0.00848734,17565.0,17564.0,1.438692]
[1673470916356,0.00848734,17565.0,17564.0,1.138692]
[1673470917115,0.00848734,17565.0,17564.0,1.438692]
[1673470919428,0.00840827,17565.0,17564.0,1.438692]
[1673470922461,0.45644969,17565.0,17564.0,1.438692]
[1673470922719,0.45644969,17565.0,17564.0,0.569346]
[1673470922976,0.45644969,17565.0,17562.0,0.9949455]
[1673470923275,0.7816987,17564.0,17562.0,0.9949455]
[1673470923511,0.7816987,17564.0,17562.0,1.39441805]
[1673470923786,0.54402081,17564.0,17562.0,1.39441805]
[1673470924012,0.54402081,17564.0,17562.0,0.569396]
[1673470924786,0.1082,17563.0,17562.0,0.569396]
[1673470925115,0.1082,17563.0,17562.0,0.676396]
[1673470925804,0.70869073,17563.0,17562.0,0.569396]
[1673470926360,0.70869073,17563.0,17562.0,0.679396]
[1673470926603,0.70869073,17563.0,17562.0,0.569396]
[1673470926880,0.70869073,17563.0,17562.0,0.607396]
[1673470927635,0.70869073,17563.0,17562.0,1.138807]
[1673470927884,0.70869073,17563.0,17562.0,0.607396]
[1673470928172,0.45943347,17564.0,17563.0,0.3]
[1673470928423,0.45943347,17564.0,17562.0,1.29631653]
[1673470928424,0.005,17563.0,17562.0,1.29631653]
[1673470929162,0.45943347,17564.0,17562.0,1.29631653]
[1673470929412,0.45943347,17564.0,17563.0,0.005]
[1673470929413,0.46443347,17564.0,17563.0,0.005]
[1673470929655,0.56763347,17564.0,17562.0,1.29631653]
[1673470929903,0.45943347,17564.0,17562.0,1.29631653]
[1673470930147,0.45943347,17564.0,17562.0,0.569396]
[1673470930401,1.40427593,17564.0,17560.0,0.04828323]
[1673470930653,0.29958789,17563.0,17560.0,0.59318448]
[1673470930914,0.16511,17562.0,17560.0,0.59318448]
[1673470931163,0.05691,17561.0,17560.0,0.59318448]
[1673470931407,0.56316576,17562.0,17560.0,0.59318448]
[1673470931656,0.56316576,17562.0,17560.0,0.65490125]
[1673470932158,0.41575575,17561.0,17560.0,0.54490125]
[1673470932407,0.41575575,17561.0,17560.0,0.116]
[1673470933428,0.41575575,17561.0,17559.0,0.569492]
[1673470933666,0.41675575,17561.0,17560.0,0.12]
[1673470933965,0.52495575,17561.0,17560.0,0.12]
[1673470934169,0.58186575,17561.0,17560.0,0.12]
[1673470934423,0.58086575,17561.0,17559.0,0.569492]
[1673470934704,0.54495575,17561.0,17559.0,0.574492]
[1673470934927,0.05691,17560.0,17558.0,1.77875958]
[1673470935180,0.52395575,17561.0,17558.0,0.63972458]
[1673470935181,0.23767789,17559.0,17558.0,0.63972458]
[1673470935432,1.09342675,17561.0,17558.0,0.58332951]
[1673470935685,1.09342675,17561.0,17559.0,0.59686935]
[1673470935686,0.54495575,17561.0,17559.0,0.59686935]
[1673470936447,0.05691,17560.0,17559.0,0.89186935]
[1673470936690,0.021,17560.0,17559.0,1.46137035]
[1673470936935,0.52395575,17561.0,17559.0,0.71127112]
[1673470937187,0.43675575,17561.0,17559.0,1.85528712]
[1673470937440,0.43675575,17561.0,17559.0,1.28577912]
[1673470937680,0.41575575,17561.0,17559.0,1.28077912]
[1673470937926,0.021,17560.0,17559.0,1.28577912]
[1673470938172,0.021,17560.0,17559.0,1.28077912]
[1673470938418,0.021,17560.0,17559.0,1.28577912]
[1673470939425,0.41575575,17561.0,17559.0,1.28077912]
[1673470939684,0.021,17560.0,17559.0,1.28577912]
[1673470940193,0.41575575,17561.0,17559.0,1.28077912]
[1673470941173,0.021,17560.0,17559.0,1.28577912]
[1673470941670,0.41575575,17561.0,17559.0,1.28077912]
[1673470943127,0.43675575,17561.0,17559.0,1.28577912]
[1673470944408,0.39384454,17560.0,17559.0,0.005]
[1673470945946,0.45075454,17560.0,17559.0,0.574508]
[1673470946194,0.39384454,17560.0,17559.0,0.569508]
[1673470946449,0.41484454,17560.0,17559.0,0.574508]
[1673470947971,0.021,17560.0,17559.0,1.144016]
[1673470950009,0.02089559,17560.0,17559.0,1.144016]
[1673470950251,0.49558484,17560.0,17559.0,1.144016]
[1673470950753,0.55249484,17560.0,17559.0,0.574508]
[1673470951259,0.49558484,17560.0,17559.0,0.574508]
[1673470951533,0.02089559,17560.0,17559.0,0.574508]
[1673470951773,0.02089559,17560.0,17559.0,1.144016]
[1673470952512,0.02089559,17560.0,17559.0,0.574508]
[1673470952760,0.02089559,17560.0,17559.0,1.144016]
[1673470953007,0.46120672,17560.0,17559.0,0.574508]
[1673470953260,0.46120672,17560.0,17559.0,1.144016]
[1673470953503,0.46120672,17560.0,17559.0,0.574508]
[1673470954224,0.51811672,17560.0,17559.0,0.574508]
[1673470954500,0.46120672,17560.0,17559.0,0.574508]
[1673470954747,0.51811672,17560.0,17559.0,0.574508]
[1673470954998,0.46120672,17560.0,17559.0,0.574508]
[1673470955254,0.51811672,17560.0,17559.0,0.574508]
[1673470955508,0.46120672,17560.0,17559.0,0.574508]
[1673470957531,0.46120672,17560.0,17559.0,1.144016]
[1673470957773,0.02089559,17560.0,17559.0,0.574508]
[1673470958049,0.02089559,17560.0,17559.0,2.33957516]
[1673470958294,0.02089559,17560.0,17559.0,2.62220204]
[1673470958552,0.02089559,17560.0,17559.0,3.67900661]
[1673470959293,0.02089559,17560.0,17559.0,4.03670961]
[1673470959535,0.02089559,17560.0,17559.0,4.45286871]
[1673470960047,0.02089559,17560.0,17559.0,4.60923225]
[1673470960823,0.02089559,17560.0,17559.0,3.84030661]
[1673470961584,0.02089559,17560.0,17559.0,3.64382517]
[1673470961836,0.02089559,17560.0,17559.0,4.60154901]
[1673470962335,0.02089559,17560.0,17559.0,4.77140889]
[1673470962582,0.02089559,17560.0,17559.0,3.35697379]
[1673470962828,0.02089559,17560.0,17559.0,3.19963629]
[1673470963322,0.02089559,17560.0,17559.0,2.94477719]
[1673470963576,0.02089559,17560.0,17559.0,3.83165831]
[1673470963828,0.02089559,17560.0,17559.0,2.48347719]
[1673470964328,0.02089559,17560.0,17559.0,3.03833629]
[1673470964574,0.02089559,17560.0,17559.0,3.19547127]
[1673470966831,0.02089559,17560.0,17559.0,2.32596327]
[1673470967090,0.02089559,17560.0,17559.0,1.91396919]
[1673470967880,0.02089559,17560.0,17559.0,1.74403684]
[1673470968371,0.02089559,17560.0,17559.0,1.91396919]
[1673470970469,0.02089559,17560.0,17559.0,2.16882829]
[1673470971153,0.02089559,17560.0,17559.0,1.91396919]
[1673470972145,0.43515722,17560.0,17559.0,1.31394835]
[1673470972392,0.43515722,17560.0,17559.0,0.005]
[1673470972634,0.49206722,17560.0,17559.0,0.005]
[1673470972878,0.43515722,17560.0,17559.0,0.005]
[1673470973140,0.49206722,17560.0,17559.0,0.005]
[1673470973380,0.49206722,17560.0,17559.0,0.00492836]
[1673470974133,0.43515722,17560.0,17559.0,0.00492836]
[1673470976411,0.49206722,17560.0,17559.0,0.00492836]
[1673470977182,0.43515722,17560.0,17559.0,0.00492836]
[1673470977679,0.49206722,17560.0,17559.0,0.00492836]
[1673470979406,0.43515722,17560.0,17559.0,0.00492836]
[1673470979674,0.49206722,17560.0,17559.0,0.00492836]
[1673470980440,0.24839357,17560.0,17559.0,0.71243854]
[1673470980697,0.02089559,17560.0,17559.0,0.71243854]
[1673470981175,0.02089559,17560.0,17559.0,1.01243854]
[1673470981467,0.02089559,17560.0,17559.0,1.45187889]
[1673470981719,0.02089559,17560.0,17559.0,1.75187889]
[1673470982504,0.02089559,17560.0,17559.0,2.32138689]
[1673470983817,0.02089559,17560.0,17559.0,1.28194654]
[1673470985355,0.02089559,17560.0,17559.0,1.85145454]
[1673470985874,0.02089559,17560.0,17559.0,4.05957559]
[1673470986129,0.02089559,17560.0,17559.0,4.71727859]
[1673470986382,0.02089559,17560.0,17559.0,4.35957559]
[1673470986638,0.02089559,17560.0,17559.0,4.71727859]
[1673470986929,0.02089559,17560.0,17559.0,4.05957559]
[1673470987173,0.02089559,17560.0,17559.0,4.71727859]
[1673470987418,0.02089559,17560.0,17559.0,4.05957559]
[1673470987699,0.02089559,17560.0,17559.0,4.71727859]
[1673470988689,0.02089559,17560.0,17559.0,4.41727859]
[1673470989193,0.02089559,17560.0,17559.0,4.71727859]
[1673470989701,0.02089559,17560.0,17559.0,4.41727859]
[1673470990234,0.02089559,17560.0,17559.0,4.71727859]
[1673470991029,0.02089559,17560.0,17559.0,4.41727859]
[1673470991278,0.02089559,17560.0,17559.0,3.47269447]
[1673470991542,0.02089559,17560.0,17559.0,3.83039747]
[1673470991780,0.02089559,17560.0,17559.0,3.47269447]
[1673470992024,0.02089559,17560.0,17559.0,3.302967]
[1673470992541,0.02089559,17560.0,17559.0,3.66067]
[1673470992793,0.02089559,17560.0,17559.0,3.6606525]
[1673470993041,0.02089559,17560.0,17559.0,3.83039747]
[1673470995084,0.02089559,17560.0,17559.0,4.41727859]
[1673470995358,0.02078423,17560.0,17559.0,4.41727859]
[1673470995574,0.02078423,17560.0,17559.0,4.71727859]
[1673470995855,0.02078423,17560.0,17559.0,4.41727859]
[1673470997096,0.02078423,17560.0,17559.0,3.83039747]
[1673470997340,0.02078423,17560.0,17559.0,3.30296835]
[1673470997879,0.02078423,17560.0,17559.0,3.66067135]
[1673470998121,0.02078423,17560.0,17559.0,3.83039747]
[1673470998382,0.02078423,17560.0,17559.0,3.66067525]
[1673470998859,0.02078423,17560.0,17559.0,4.41727859]
[1673470999105,0.02078423,17560.0,17559.0,4.71727859]
[1673470999604,0.02078423,17560.0,17559.0,4.41727859]
[1673471003608,0.02078423,17560.0,17559.0,4.05957559]
[1673471005678,0.02078423,17560.0,17559.0,3.47269447]
[1673471005946,0.02078423,17560.0,17559.0,3.30299244]
[1673471006195,0.02078423,17560.0,17559.0,3.66069544]
[1673471007764,0.40477581,17560.0,17559.0,2.59104384]
[1673471008019,0.40477581,17560.0,17559.0,1.85145454]
[1673471008269,0.40477581,17560.0,17559.0,0.57443636]
[1673471010049,0.40477581,17560.0,17559.0,1.14394436]
[1673471011091,0.40477581,17560.0,17559.0,0.57443636]
[1673471014111,0.40477581,17560.0,17559.0,0.00492836]
[1673471017131,0.46168581,17560.0,17559.0,0.00492836]
[1673471018175,0.40477581,17560.0,17559.0,0.00492836]
[1673471019406,0.40477581,17560.0,17559.0,0.57443636]
[1673471020934,0.40477581,17560.0,17559.0,0.00492836]
[1673471021181,0.63227379,17560.0,17559.0,0.00492836]
[1673471024518,0.57536379,17560.0,17559.0,0.00492836]
[1673471024780,0.63227379,17560.0,17559.0,0.00492836]
[1673471025273,0.40477581,17560.0,17559.0,0.00492836]
[1673471025762,0.46168581,17560.0,17559.0,0.00492836]
[1673471027031,0.63227379,17560.0,17559.0,0.00492836]
[1673471027823,0.46168581,17560.0,17559.0,0.00492836]
[1673471029611,0.63227379,17560.0,17559.0,0.00492836]
[1673471030118,0.46168581,17560.0,17559.0,0.00492836]
[1673471030347,0.63227379,17560.0,17559.0,0.00492836]
[1673471030600,0.88815577,17560.0,17559.0,0.00492836]
[1673471030843,1.45763177,17560.0,17559.0,0.00492836]
[1673471031101,2.02710777,17560.0,17559.0,0.00492836]
[1673471033867,2.20519408,17560.0,17559.0,0.00492836]
[1673471034111,4.3205949,17560.0,17559.0,0.00481991]
[1673471034376,0.0031644,17558.0,17557.0,0.05089891]
[1673471034666,1.7389009,17558.0,17557.0,0.00172307]
[1673471034906,3.52570301,17558.0,17557.0,0.00172307]
[1673471035183,3.48475644,17558.0,17557.0,0.00172307]
[1673471035412,3.48475644,17558.0,17557.0,0.00872307]
[1673471035413,5.03204773,17558.0,17557.0,0.00872307]
[1673471035663,5.61774673,17558.0,17557.0,0.00172307]
[1673471035930,4.84157411,17558.0,17557.0,0.00872307]
[1673471036425,4.73257411,17558.0,17557.0,0.00172307]
[1673471036650,4.09418676,17558.0,17557.0,0.00872307]
[1673471036900,3.37379295,17558.0,17557.0,0.00872307]
[1673471037161,3.40470492,17558.0,17557.0,0.00872307]
[1673471037641,2.54923378,17558.0,17557.0,0.00872307]
[1673471038893,2.37892775,17558.0,17557.0,0.00872307]
[1673471039378,2.54923378,17558.0,17557.0,0.00872307]
[1673471039868,2.37892775,17558.0,17557.0,0.00872307]
[1673471041142,2.54923378,17558.0,17557.0,0.00872307]
[1673471041393,2.10156043,17558.0,17557.0,0.00872307]
[1673471041643,2.58906286,17558.0,17557.0,0.00872307]
[1673471043650,2.41875683,17558.0,17557.0,0.00872307]
[1673471044932,2.58906286,17558.0,17557.0,0.00872307]
[1673471046501,2.844534,17558.0,17557.0,0.00872307]
[1673471046703,2.58906286,17558.0,17557.0,0.00872307]
[1673471047461,2.41875683,17558.0,17557.0,0.00872307]
[1673471049410,2.58906286,17558.0,17557.0,0.00872307]
[1673471050412,2.42736286,17558.0,17557.0,0.00872307]
[1673471051186,2.682834,17558.0,17557.0,0.00872307]
[1673471051430,2.19533157,17558.0,17557.0,0.00872307]
[1673471051921,2.54565048,17558.0,17557.0,0.00872307]
[1673471052177,2.29017934,17558.0,17557.0,0.00872307]
[1673471052437,0.47298292,17557.0,17556.0,0.53447345]
[1673471052694,0.47298292,17557.0,17556.0,0.00030675]
[1673471053237,0.47298292,17557.0,17555.0,1.20758251]
[1673471053500,0.47298292,17557.0,17555.0,0.62070139]
[1673471053751,0.47298292,17557.0,17555.0,1.19033639]
[1673471054038,0.47298292,17557.0,17556.0,0.006]
[1673471054039,0.58798292,17557.0,17556.0,0.006]
[1673471054249,0.47298292,17557.0,17556.0,1.02100787]
[1673471054752,0.58798292,17557.0,17556.0,0.72100787]
[1673471055007,0.70298292,17557.0,17556.0,0.006]
[1673471055254,0.70298292,17557.0,17556.0,0.306]
[1673471056011,0.70298292,17557.0,17556.0,0.006]
[1673471056779,0.70298292,17557.0,17556.0,0.306]
[1673471057046,0.70298292,17557.0,17556.0,0.006]
[1673471057541,0.70298292,17557.0,17556.0,0.875605]
[1673471058259,0.70298292,17557.0,17556.0,0.575605]
[1673471059008,0.70298292,17557.0,17556.0,1.14521]
[1673471059774,0.23,17557.0,17556.0,1.8507103]
[1673471060038,0.23,17557.0,17556.0,2.63309442]
[1673471060298,0.23,17557.0,17556.0,3.09529442]
[1673471060550,0.23,17557.0,17556.0,3.27693452]
[1673471060801,0.23,17557.0,17556.0,3.21440168]
[1673471061069,0.23,17557.0,17556.0,3.55418501]
[1673471061565,0.23,17557.0,17556.0,3.70720055]
[1673471061830,0.23,17557.0,17556.0,3.56125907]
[1673471062080,0.22992205,17557.0,17556.0,3.22130055]
[1673471062327,0.22992205,17557.0,17556.0,3.54644647]
[1673471062583,0.22992205,17557.0,17556.0,3.76016613]
[1673471062831,0.0031644,17558.0,17556.0,3.76266613]
[1673471063094,0.01,17557.0,17556.0,3.75323355]
[1673471063338,0.0031644,17558.0,17557.0,0.3]
[1673471063588,0.0031644,17558.0,17557.0,2.64393242]
[1673471063831,0.0031644,17558.0,17557.0,3.03588491]
[1673471064079,0.0031644,17558.0,17557.0,3.60545791]
[1673471064336,0.0031644,17558.0,17557.0,3.56224957]
[1673471064596,0.0031644,17558.0,17557.0,4.04694957]
[1673471064852,0.0131644,17558.0,17557.0,3.78522704]
[1673471065365,0.01308816,17558.0,17557.0,3.78522704]
[1673471065616,0.01308816,17558.0,17557.0,4.1249473]
[1673471066382,0.01308816,17558.0,17557.0,3.95468878]
[1673471066601,0.01308816,17558.0,17557.0,4.1249473]
[1673471066903,0.01308816,17558.0,17557.0,4.37959227]
[1673471067157,0.01308816,17558.0,17557.0,4.6945203]
[1673471067440,0.01308816,17558.0,17557.0,4.73825026]
[1673471067934,0.01308816,17558.0,17557.0,4.56787181]
[1673471068188,0.01308816,17558.0,17557.0,4.73825026]
[1673471068449,0.01704826,17563.0,17557.0,4.56757134]
[1673471068697,0.42359039,17563.0,17562.0,0.1613]
[1673471068951,0.44997502,17563.0,17562.0,2.65281712]
[1673471069201,0.44997502,17563.0,17562.0,2.81361712]
[1673471069451,0.01704826,17563.0,17562.0,2.81361712]
[1673471069699,0.01704826,17563.0,17562.0,2.45591412]
[1673471070214,0.01704826,17563.0,17562.0,1.869033]
[1673471070708,0.06404826,17563.0,17562.0,1.873033]
[1673471071706,0.06404826,17563.0,17562.0,2.81761712]
[1673471072710,0.06404826,17563.0,17562.0,3.67001449]
[1673471072959,0.06404826,17563.0,17562.0,3.01231149]
[1673471073208,0.06404826,17563.0,17562.0,2.42543037]
[1673471074498,0.06404826,17563.0,17562.0,1.303622]
[1673471074753,0.4979668,17563.0,17562.0,1.303622]